{"text_format":"1","workbook":"xlsx","n_sheets":3,"sheets":["Sheet1","Sheet2","Sheet3"],"not_rendered":{"charts":0,"images":0,"macros":0,"external_links":0,"defined_names":0,"comments":0,"pivot_tables":0},"unopened":[],"bounds":{"document_bytes":16777216,"sheet_cells":100000,"rows_first":2000,"rows_last":500,"rows_between":2000,"halvings":0,"cell_chars":16384,"cell_head_chars":4096},"cells_cut":0,"cells_raw":0,"read":"whole","date_system":"1900"}

{"sheet":"Sheet1","index":0,"n_rows":43,"n_cols":15,"rows_kept":43,"cut":false,"hidden":false,"merged":[[42,13,42,14],[41,13,41,14],[10,12,10,14],[34,12,34,14],[32,12,32,13],[38,12,39,14],[35,12,36,14],[3,10,3,14],[5,4,5,7],[4,1,4,7],[5,1,5,3],[7,1,7,3],[35,8,36,10],[35,1,36,5],[6,4,6,7],[8,1,8,3],[7,4,7,7],[8,4,8,7],[34,1,34,10],[6,1,6,3],[32,1,32,9]]}
[null,"HERITAGE UNIVERSITY",null,null,null,null,null,null,null,"(4)",null,"Circle Type of Workstudy"]
[null,"WORK STUDY TIMESHEET ",null,null,null,null,null,null,null,null,null,"FEDERAL",null,"STATE"]
[]
[null,null,null,null,null,null,null,null,null,null,"For Work Study Office Use Only"]
["(1)",null,null,null,null,null,null,null,null,null,"Period Beg:",null,null,"Period End:"]
[null,"Student's ID Number:",null,null,null,null,null,null,null,null,"Hours Worked",null,{"$f":"O33","v":0}]
[null,"Student's Name:",null,null,null,null,null,null,null,null,"Rate Per Hour",null,15.74]
[null,"Department Working In:",null,null,null,null,null,null,null,null,"Gross Wages",null,{"$f":"ROUND(M6*M7,2)","v":0}]
[null,"Job Title:",null,null,null,null,null,null,null,null,"Date Processed ",null,null,"Check/DD Number"]
[]
["(2)","Date","Time In","ER INT","Time Out","ER INT","Time In","ER INT","Time Out","ER INT","Total Hours",null,"SUMMARY"]
[null,null,null,null,null,null,null,null,null,null,null,null,"Sick Leave","Date","Hours"]
[null,null,null,null,null,null,null,null,null,null,{"$f":"(ROUND(96*((E13-C13)+(I13-G13)),0)/96)*24","v":0},null,null,{"$f":"B13","v":"00:00:00"},{"$f":"K13","v":0}]
[null,null,null,null,null,null,null,null,null,null,{"$f":"(ROUND(96*((E14-C14)+(I14-G14)),0)/96)*24","v":0},null,null,{"$f":"B14","v":"00:00:00"},{"$f":"K14","v":0}]
[null,null,null,null,null,null,null,null,null,null,0,null,null,"00:00:00",0]
[null,null,null,null,null,null,null,null,null,null,0,null,null,"00:00:00",0]
[null,null,null,null,null,null,null,null,null,null,0,null,null,"00:00:00",0]
[null,null,null,null,null,null,null,null,null,null,0,null,null,"00:00:00",0]
[null,null,null,null,null,null,null,null,null,null,0,null,null,"00:00:00",0]
[null,null,null,null,null,null,null,null,null,null,0,null,null,"00:00:00",0]
[null,null,null,null,null,null,null,null,null,null,0,null,null,"00:00:00",0]
[null,null,null,null,null,null,null,null,null,null,0,null,null,"00:00:00",0]
[null,null,null,null,null,null,null,null,null,null,0,null,null,"00:00:00",0]
[null,null,null,null,null,null,null,null,null,null,0,null,null,"00:00:00",0]
[null,null,null,null,null,null,null,null,null,null,0,null,null,"00:00:00",0]
[null,null,null,null,null,null,null,null,null,null,0,null,null,"00:00:00",0]
[null,null,null,null,null,null,null,null,null,null,0,null,null,"00:00:00",0]
[null,null,null,null,null,null,null,null,null,null,0,null,null,"00:00:00",0]
[null,null,null,null,null,null,null,null,null,null,0,null,null,"00:00:00",0]
[null,null,null,null,null,null,null,null,null,null,{"$f":"(ROUND(96*((E30-C30)+(I30-G30)),0)/96)*24","v":0},null,null,"00:00:00",0]
[null,null,null,null,null,null,null,null,null,null,{"$f":"(ROUND(96*((E31-C31)+(I31-G31)),0)/96)*24","v":0},null,null,"00:00:00",0]
[null,null,null,null,null,null,null,null,null,null,{"$f":"(ROUND(96*((E32-C32)+(I32-G32)),0)/96)*24","v":0},null,null,"00:00:00",0]
[null,"TOTAL HOURS WORKED THIS PAY PERIOD:",null,null,null,null,null,null,null,null,{"$f":"SUM(K13:K32)","v":0},null,"TOTAL HOURS",null,{"$f":"SUM(O13:O32)","v":0}]
["(3)"]
[null,"I hereby certify that this time sheet is a true and correct statement of hours worked and that I do have workstudy eligibility to cover my gross earnings.  ",null,null,null,null,null,null,null,null,null,null,"This time sheet is a true and correct statement of the hours worked by the workstudy employee.  "]
[]
[]
[null,"Student Signature",null,null,null,null,null,null,"Date",null,null,null,"Supervisor's Signature"]
[]
[]
[null,"Workstudy Employee fills out the yellow areas in section # 1 - # 3.",null,null,null,null,null,null,null,null,null,null,"Print Supervisor's Name"]
[null,"Example on how to enter hours: 8:00 am,   3:05 pm",null,null,null,null,null,null,null,null,null,"(5)"]
[null,"Department Supervisor fills out light blue areas in # 4 and # 5",null,null,null,null,null,null,null,null,null,null,"Date","  Dept #"]

{"sheet":"Sheet2","index":1,"n_rows":0,"n_cols":0,"rows_kept":0,"cut":false,"hidden":false,"merged":[]}

{"sheet":"Sheet3","index":2,"n_rows":0,"n_cols":0,"rows_kept":0,"cut":false,"hidden":false,"merged":[]}